Workbook

Sheet XSV-Calc Horizontal
B3: Rev | C3: Description | D3: By | E3: Chkd | F3: Appd | G3: Date
B4: 0 | C4: First Issue | D4: ABC | G4: 2012-11-10
B5: 1
B6: 2
B7: 3
B8: 4 | H8: Process Calculation Sheet
B9: V-12A
C11: XSV-Calc | D11: Vessel Partial Volume Calculator
C13: Project Name | D13: Test Project
C14: Customer | D14: ABC Inc
C15: Vessel Name | D15: Surge Drum
C16: Tag No | D16: V-001
P17: 2:1 Elliptical | Q17: 2:1 Elliptical | R17: 2:1 Elliptical
P18: Flat | Q18: Flat | R18: Flat
C19: Case | E19: A | F19: B | G19: C | P19: =E19 -> A | Q19: =F19 -> B | R19: C
C20: Vessel Internal Diameter, D | D20: mm | E20: 1416 | F20: 1422 | G20: 2000
C21: Vessel Length T/T, L | D21: mm | E21: 4013 | F21: 4013 | G21: 7000 | P21: =E20/1000 -> 1.416 | Q21: =F20/1000 -> 1.422 | R21: 2
C22: Height of Fluid, h | D22: mm | E22: 660 | F22: 660 | G22: 1200 | P22: =E21/1000 -> 4.013 | Q22: 4.013 | R22: 7
C24: Type of Vessel Head | D24: Select | E24: 2:1 Elliptical | F24: 2:1 Elliptical | G24: Flat | P24: =IF(E24=P17,0.25*E20/1000,0) -> 0.354 | Q24: =IF(F24=Q17,0.25*F20/1000,0) -> 0.3555 | R24: 0
C25: Head Depth, a | D25: mm | E25: =P24*1000 -> 354 | F25: =Q24*1000 -> 355.5 | G25: =R24*1000 -> 0 | P25: =E22/1000 -> 0.66 | Q25: =F22/1000 -> 0.66 | R25: 1.2
C27: Volume below Level h (Liquid) | D27: m3 | E27: =P39 -> 3.221132669 | F27: =Q39 -> 3.231785302 | G27: =R39 -> 13.77679399
C28: Volume above Level h (Gas) | D28: m3 | E28: =E29-E27 -> 3.841698671 | F28: =F29-F27 -> 3.894203634 | G28: =G29-G27 -> 8.214354586
C29: Total Vessel Volume | D29: m3 | E29: =P44 -> 7.06283134 | F29: =Q44 -> 7.125988935 | G29: =R44 -> 21.99114858
O32: R = D/2 | P32: =P21/2 -> 0.708 | Q32: =Q21/2 -> 0.711 | R32: 1
P36: To H | Q36: To H | R36: To H
O37: Af = R2 * cos-1((R-h)/R) - (R-h)*sqrt(2*R*h-h2) | P37: =P32^2*(ACOS((P32-P25)/P32))-((P32-P25)*SQRT(2*P32*P25-P25^2)) -> 0.7194677537 | Q37: =Q32^2*(ACOS((Q32-Q25)/Q32))-((Q32-Q25)*SQRT(2*Q32*Q25-Q25^2)) -> 0.7216107679 | R37: 1.968113427
O39: Vf = Af*L + PI*a*h2 * (1-(h/(3R))) | P39: =P37*P22+ PI()*P24*P25^2 * (1-(P25/(3*P32))) -> 3.221132669 | Q39: =Q37*Q22+ PI()*Q24*Q25^2 * (1-(Q25/(3*Q32))) -> 3.231785302 | R39: 13.77679399
P41: 100% Full | Q41: 100% Full | R41: 100% Full
P42: =P32^2*(ACOS((P32-P21)/P32))-((P32-P21)*SQRT(2*P32*P21-P21^2)) -> 1.5747673 | Q42: =Q32^2*(ACOS((Q32-Q21)/Q32))-((Q32-Q21)*SQRT(2*Q32*Q21-Q21^2)) -> 1.58814106 | R42: 3.141592654
P44: =P42*P22+ PI()*P24*P21^2 * (1-(P21/(3*P32))) -> 7.06283134 | Q44: =Q42*Q22+ PI()*Q24*Q21^2 * (1-(Q21/(3*Q32))) -> 7.125988935 | R44: 21.99114858
C47: Notes
B48: 1)
B49: 2)
B50: 3)
B51: 4)
B52: THIS DOCUMENT IS ISSUED AS PRELIMINARY DESIGN INFORMATION ONLY AND NO LIABILITY IS ACCEPTED OR IMPLIED FOR ACCURACY. ALL DATA SHOULD BE CHECKED AND VERIFIED BY QUALIFIED PERSONNEL. ©KIRK PROCESS SOLUTIONS LIMITED WWW.KIRKPROCESS.COM | D52: Document Title | H52: Document No.
D53: Volume Calculations for | H53: ABC-12345
D54: Horizontal Drum | H54: Sheet 1 of 1

Sheet XSV-Calc Vertical
B3: Rev | C3: Description | D3: By | E3: Chkd | F3: Appd | G3: Date
B4: 0 | C4: First Issue | D4: ABC | G4: 2012-11-10
B5: 1
B6: 2
B7: 3
B8: 4 | H8: Process Calculation Sheet
B9: V-10A
C11: XSV-Calc | D11: Vessel Partial Volume Calculator
C13: Project Name | D13: Test Project
C14: Customer | D14: ABC Inc
C15: Vessel Name | D15: Surge Drum
C16: Tag No | D16: V-001
P17: 2:1 Elliptical | Q17: 2:1 Elliptical | R17: 2:1 Elliptical
P18: Flat | Q18: Flat | R18: Flat
C19: Case | E19: A | F19: B | G19: C | P19: =E19 -> A | Q19: =F19 -> B | R19: C
C20: Vessel Internal Diameter, D | D20: mm | E20: 2250 | F20: 2000 | G20: 2000
C21: Vessel Height T/T, H | D21: mm | E21: 3250 | F21: 5000 | G21: 5000 | P21: =E20/1000 -> 2.25 | Q21: =F20/1000 -> 2 | R21: 2
C22: Height of Fluid above T/L, h | D22: mm | E22: 0 | F22: 2500 | G22: 2500 | P22: =E21/1000 -> 3.25 | Q22: 5 | R22: 5
C24: Type of Vessel Head | D24: Select | E24: 2:1 Elliptical | F24: 2:1 Elliptical | G24: Flat | P24: =IF(E24=P17,0.25*E20/1000,0) -> 0.5625 | Q24: =IF(F24=Q17,0.25*F20/1000,0) -> 0.5 | R24: 0
C25: Head Depth, a | D25: mm | E25: =P24*1000 -> 562.5 | F25: =Q24*1000 -> 500 | G25: =R24*1000 -> 0 | P25: =E22/1000 -> 0 | Q25: =F22/1000 -> 2.5 | R25: 2.5
C27: Volume of Liquid to h | D27: m3 | E27: =P39 -> 1.492171875 | F27: =Q39 -> 8.901981634 | G27: =R39 -> 7.853981634
C28: Volume of Gas above h | D28: m3 | E28: =E29-E27 -> 14.41442603 | F28: =F29-F27 -> 8.901981634 | G28: =G29-G27 -> 7.853981634
C29: Total Vessel Volume incl 2 Heads | D29: m3 | E29: =P44 -> 15.90659791 | F29: =Q44 -> 17.80396327 | G29: =R44 -> 15.70796327 | O29: R = D/2 | P29: =P21/2 -> 1.125 | Q29: =Q21/2 -> 1 | R29: =R21/2 -> 1
O30: Area | P30: =PI()*P29^2 -> 3.976078202 | Q30: =PI()*Q29^2 -> 3.141592654 | R30: =PI()*R29^2 -> 3.141592654
O32: Vol 1 head = 0.131*D^3 | P32: =IF(E24=P17,0.131*P21^3,0) -> 1.492171875 | Q32: =IF(F24=Q17,0.131*Q21^3,0) -> 1.048 | R32: 0
O33: Vol 2 heads | P33: =P32*2 -> 2.98434375 | Q33: =Q32*2 -> 2.096 | R33: 0
P36: To H | Q36: To H | R36: To H
O37: Vol in Body = Area x Ht | P37: =P30*P25 -> 0 | Q37: =Q30*Q25 -> 7.853981634 | R37: =R30*R25 -> 7.853981634
O39: Vol to h incl 1 head | P39: =P37+P32 -> 1.492171875 | Q39: =Q37+Q32 -> 8.901981634 | R39: =R37+R32 -> 7.853981634
P41: 100% Full | Q41: 100% Full | R41: 100% Full
O42: Body | P42: =P30*P22 -> 12.92225416 | Q42: =Q30*Q22 -> 15.70796327 | R42: =R30*R22 -> 15.70796327
O44: Total body + heads | P44: =P42+P33 -> 15.90659791 | Q44: =Q42+Q33 -> 17.80396327 | R44: =R42+R33 -> 15.70796327
C49: Notes
B50: 1)
B51: 2)
B52: 3)
B53: 4)
B54: THIS DOCUMENT IS ISSUED AS PRELIMINARY DESIGN INFORMATION ONLY AND NO LIABILITY IS ACCEPTED OR IMPLIED FOR ACCURACY. ALL DATA SHOULD BE CHECKED AND VERIFIED BY QUALIFIED PERSONNEL. ©KIRK PROCESS SOLUTIONS LIMITED. WWW.KIRKPROCESS.COM | D54: Document Title | H54: Document No.
D55: Volume Calculations for | H55: ABC-12345
D56: Vertical Drum | H56: Sheet 1 of 1
